bitfinex/quotes_BTCUSD_20250901
["timestamp","ask_amount","ask_price","bid_price","bid_amount"]
[1756729842681,0.31477317,109070.0,109060.0,0.79978128]
[1756729842887,0.31681317,109070.0,109060.0,0.74978128]
[1756729843090,0.31681317,109070.0,109060.0,0.90434128]
[1756729843724,0.34436317,109070.0,109060.0,0.56639599]
[1756729843934,0.34436317,109070.0,109060.0,0.71695599]
[1756729844150,0.05375882,109070.0,109060.0,0.71695599]
[1756729844354,0.34436317,109070.0,109060.0,0.31795599]
[1756729845634,0.34436317,109070.0,109060.0,0.50134128]
[1756729848150,0.68436317,109070.0,109060.0,0.31799599]
[1756729848494,0.68436317,109070.0,109060.0,0.71799599]
[1756729849475,0.97496752,109070.0,109060.0,0.22608]
[1756729849619,0.97496752,109070.0,109060.0,0.22604]
[1756729849977,0.99475309,109070.0,109060.0,0.22604]
[1756729850361,0.99475309,109070.0,109060.0,0.22504]
[1756729850771,0.99575309,109070.0,109060.0,0.22504]
[1756729850982,0.36093882,109060.0,109040.0,0.47052719]
[1756729851157,0.5832487,109050.0,109040.0,0.56244318]
[1756729851383,0.5864787,109050.0,109040.0,0.71700318]
[1756729851610,0.5864787,109050.0,109040.0,0.9004221]
[1756729852187,0.5864787,109050.0,109040.0,0.71700318]
[1756729852414,0.5864787,109050.0,109040.0,0.56244318]
[1756729852624,0.94741752,109050.0,109040.0,0.71696318]
[1756729852978,0.97497252,109050.0,109040.0,0.71696318]
[1756729853175,0.97497252,109050.0,109040.0,0.71896318]
[1756729854213,0.97497252,109050.0,109040.0,0.71696318]
[1756729854418,0.97497252,109050.0,109040.0,0.71896318]
[1756729854864,0.97497252,109050.0,109040.0,0.71696318]
[1756729855071,0.97497252,109050.0,109040.0,0.71796318]
[1756729855268,0.97497252,109050.0,109040.0,0.31896318]
[1756729855640,0.97497252,109050.0,109040.0,0.16444318]
[1756729855832,0.97497252,109050.0,109040.0,0.62696719]
[1756729856037,0.97497252,109050.0,109040.0,0.22700719]
[1756729856501,0.97497252,109050.0,109040.0,0.22600719]
[1756729856993,0.97497252,109050.0,109040.0,0.22700719]
[1756729857400,0.97497252,109050.0,109040.0,0.22600719]
[1756729857601,0.97497252,109050.0,109040.0,0.15448719]
[1756729857849,1.26657687,109050.0,109040.0,0.15448719]
[1756729858378,0.97597252,109050.0,109040.0,0.15448719]
[1756729859220,0.97697252,109050.0,109040.0,0.15448719]
[1756729859827,0.97597252,109050.0,109040.0,0.15448719]
[1756729860207,0.97797252,109050.0,109040.0,0.15448719]
[1756729860403,0.97597252,109050.0,109040.0,0.15448719]
[1756729861008,0.97697252,109050.0,109040.0,0.15448719]
[1756729861398,0.97797252,109050.0,109040.0,0.15448719]
[1756729861631,1.26857687,109050.0,109040.0,0.15440719]
[1756729861917,1.26757687,109050.0,109040.0,0.15440719]
[1756729862322,1.26857687,109050.0,109040.0,0.15440719]
[1756729862921,0.97797252,109050.0,109040.0,0.15440719]
[1756729864223,0.97497252,109050.0,109040.0,0.15440719]
[1756729864640,0.97597252,109050.0,109040.0,0.15669992]
[1756729864972,0.97597252,109050.0,109040.0,0.15440719]
[1756729865343,0.97597252,109050.0,109040.0,0.33782611]
[1756729865743,0.97597252,109050.0,109040.0,0.40830611]
[1756729865946,0.9497637,109050.0,109040.0,0.40830611]
[1756729866589,0.96970252,109050.0,109040.0,0.40830611]
[1756729866947,0.96970252,109050.0,109040.0,0.40930611]
[1756729867754,0.97285252,109050.0,109040.0,0.40930611]
[1756729869176,0.97285252,109050.0,109040.0,0.41030611]
[1756729869890,0.97285252,109050.0,109040.0,0.22688719]
[1756729870295,0.97483252,109050.0,109040.0,0.22688719]
[1756729871284,0.97483252,109050.0,109040.0,0.22588719]
[1756729871485,0.97483252,109050.0,109040.0,0.22488719]
[1756729871767,0.97583252,109050.0,109040.0,0.22488719]
[1756729871968,0.97483252,109050.0,109040.0,0.22488719]
[1756729872196,0.97483252,109050.0,109040.0,0.22480719]
[1756729872197,1.26543687,109050.0,109040.0,0.22480719]
[1756729872399,1.26543687,109050.0,109040.0,0.22580719]
[1756729873102,1.26543687,109050.0,109040.0,0.22680719]
[1756729873947,1.26543687,109050.0,109040.0,0.15656719]
[1756729874783,1.26543687,109050.0,109040.0,0.15456719]
[1756729874983,1.26643687,109050.0,109040.0,0.15456719]
[1756729875924,1.76605053,109050.0,109040.0,4.719e-05]
[1756729880564,1.79078162,109050.0,109040.0,4.719e-05]
[1756729880957,1.76605053,109050.0,109040.0,4.719e-05]
[1756729881340,1.79078162,109050.0,109040.0,4.719e-05]
[1756729881624,1.63626162,109050.0,109040.0,4.719e-05]
[1756729881779,1.45285952,109050.0,109040.0,4.719e-05]
[1756729881987,1.76613053,109050.0,109040.0,4.719e-05]
[1756729882691,1.79086162,109050.0,109040.0,4.719e-05]
[1756729886403,1.45285952,109050.0,109040.0,4.719e-05]
[1756729886551,1.79086162,109050.0,109040.0,4.719e-05]
[1756729887077,1.83148288,109050.0,109040.0,4.719e-05]
[1756729888058,1.46675179,109050.0,109040.0,4.719e-05]
[1756729889636,1.28326969,109050.0,109040.0,4.719e-05]
[1756729889838,1.04560809,109050.0,109040.0,4.719e-05]
[1756729890442,0.70047809,109050.0,109040.0,4.719e-05]
[1756729890644,0.6097637,109050.0,109040.0,4.719e-05]
[1756729891474,0.63385252,109050.0,109040.0,4.719e-05]
[1756729892110,0.6097637,109050.0,109040.0,0.00233992]
[1756729892512,0.63070252,109050.0,109040.0,0.00233992]
[1756729892711,0.63070252,109050.0,109040.0,4.719e-05]
[1756729893476,0.97070252,109050.0,109040.0,4.719e-05]
[1756729894520,0.97070252,109050.0,109040.0,0.15472719]
[1756729897106,0.97369252,109050.0,109040.0,0.15472719]
[1756729898085,0.97070252,109050.0,109040.0,0.15701992]
[1756729898291,0.34009817,109050.0,109040.0,0.43235483]
[1756729898509,0.63070252,109050.0,109040.0,0.4300621]
[1756729898917,0.60314752,109050.0,109040.0,0.4300621]
[1756729899118,0.60314752,109050.0,109040.0,0.24656318]
[1756729899324,0.60314752,109050.0,109040.0,0.4299821]
[1756729899788,0.60314752,109050.0,109040.0,0.2763821]
[1756729899931,0.60314752,109050.0,109040.0,0.24756318]
[1756729900134,0.60214752,109050.0,109040.0,0.4309821]
[1756729900354,0.60214752,109050.0,109040.0,0.24856318]
[1756729900889,0.60214752,109050.0,109040.0,0.24852318]
[1756729901336,0.60214752,109050.0,109040.0,0.4319421]
[1756729901743,0.60214752,109050.0,109040.0,0.24852318]
[1756729901979,0.60513752,109050.0,109040.0,0.24852318]
[1756729902157,0.60513752,109050.0,109040.0,0.24848318]
[1756729902362,0.60513752,109050.0,109040.0,0.64848318]
[1756729903178,0.60513752,109050.0,109040.0,0.8319021]
[1756729903515,0.60513752,109050.0,109040.0,0.64848318]
[1756729903864,0.60513752,109050.0,109040.0,0.8319021]
[1756729904071,0.60513752,109050.0,109040.0,0.71896318]
[1756729904290,0.31666317,109050.0,109040.0,0.56444318]
[1756729904492,0.60726752,109050.0,109040.0,0.71892318]
[1756729904906,0.60726752,109050.0,109040.0,0.56444318]
[1756729905108,0.60726752,109050.0,109040.0,0.71892318]
[1756729905355,0.60726752,109050.0,109040.0,0.07252719]
[1756729905547,1.18066962,109050.0,109040.0,0.00204719]
[1756729905767,1.65347297,109050.0,109040.0,0.00104719]
[1756729905931,1.67325833,109050.0,109040.0,4.719e-05]
[1756729906328,1.67425833,109050.0,109040.0,4.719e-05]
[1756729906699,1.67804795,109050.0,109040.0,4.719e-05]
[1756729907137,1.67904795,109050.0,109040.0,4.719e-05]
[1756729908189,1.77096394,109050.0,109040.0,4.719e-05]
[1756729909924,1.87221379,109050.0,109040.0,4.719e-05]
[1756729912242,1.71757379,109050.0,109040.0,4.719e-05]
[1756729912492,1.81218267,109050.0,109040.0,4.719e-05]
[1756729914841,2.25438267,109050.0,109040.0,4.719e-05]
[1756729915541,2.09970267,109050.0,109040.0,4.719e-05]
[1756729915840,1.91630057,109050.0,109040.0,4.719e-05]
[1756729916039,1.6472415,109050.0,109040.0,4.719e-05]
[1756729916273,1.47166268,109050.0,109040.0,0.00233992]
[1756729916605,1.6473215,109050.0,109040.0,0.00233992]
[1756729917349,1.6473215,109050.0,109040.0,4.719e-05]
[1756729917566,1.8307236,109050.0,109040.0,4.719e-05]
[1756729917804,2.12132795,109050.0,109040.0,4.719e-05]
[1756729918187,1.6473215,109050.0,109040.0,4.719e-05]
[1756729918368,1.4874815,109050.0,109040.0,4.719e-05]
[1756729918567,1.41769614,109050.0,109040.0,4.719e-05]
[1756729918787,1.46769614,109050.0,109040.0,0.00233992]
[1756729919168,1.41769614,109050.0,109040.0,0.00233992]
[1756729919868,1.47068614,109050.0,109040.0,0.00233992]
[1756729920180,1.41769614,109050.0,109040.0,0.00233992]
[1756729922234,1.41769614,109050.0,109040.0,0.25623884]
[1756729922437,1.41769614,109050.0,109040.0,0.07052719]
[1756729922637,1.42068614,109050.0,109040.0,0.07052719]
[1756729924682,1.42068614,109050.0,109040.0,0.47052719]
[1756729925715,1.42283614,109050.0,109040.0,0.47052719]
[1756729926768,1.42283614,109050.0,109040.0,0.62536719]
[1756729927675,1.42283614,109050.0,109040.0,0.22536719]
[1756729931027,1.42283614,109050.0,109040.0,0.07052719]
[1756729931220,1.42283614,109050.0,109040.0,0.22540719]
[1756729932059,1.42283614,109050.0,109040.0,0.07052719]
[1756729932212,1.86844049,109050.0,109040.0,4.719e-05]
[1756729932415,2.05184259,109050.0,109040.0,4.719e-05]
[1756729932630,2.10184259,109050.0,109040.0,4.719e-05]
[1756729935317,1.47620049,109050.0,109040.0,4.719e-05]
[1756729935513,1.18559614,109050.0,109040.0,4.719e-05]
[1756729936954,1.36899824,109050.0,109040.0,4.719e-05]
[1756729937221,1.65960259,109050.0,109040.0,4.719e-05]
[1756729938175,1.03063614,109050.0,109040.0,4.719e-05]
[1756729938374,0.95455732,109050.0,109040.0,0.18346611]
[1756729938632,0.95455732,109050.0,109040.0,0.3458621]
[1756729939045,0.61455732,109050.0,109040.0,0.3458621]
[1756729939203,0.63549614,109050.0,109040.0,0.3458621]
[1756729939636,0.61455732,109050.0,109040.0,0.3458621]
[1756729939902,0.29639397,109050.0,109040.0,0.3458621]
[1756729940105,0.29160435,109050.0,109040.0,0.3458621]
[1756729940309,0.027553,109060.0,109050.0,0.1834021]
[1756729940513,0.29060435,109070.0,109060.0,0.18337017]
[1756729940687,0.39369866,109080.0,109070.0,0.18336847]
[1756729940853,0.70524183,109080.0,109070.0,0.27757656]
[1756729941077,0.70524183,109080.0,109070.0,0.27528446]
[1756729941294,0.63169552,109080.0,109070.0,0.27528446]
[1756729941533,0.6107567,109080.0,109070.0,0.27528446]
[1756729942092,0.63169552,109080.0,109070.0,0.09191599]
[1756729942732,0.63169552,109080.0,109070.0,0.27628446]
[1756729943123,0.63169552,109080.0,109070.0,0.24903599]
[1756729943325,0.63169552,109080.0,109070.0,0.43240446]
[1756729943730,0.63479552,109080.0,109070.0,0.43240446]
[1756729943969,0.63479552,109080.0,109070.0,0.49391599]
[1756729944168,0.63479552,109080.0,109070.0,0.64899599]
[1756729945698,0.63694552,109080.0,109070.0,0.64899599]
[1756729947095,0.63694552,109080.0,109070.0,0.24899599]
[1756729947532,0.63684552,109080.0,109070.0,0.64899599]
[1756729949065,0.63684552,109080.0,109070.0,0.83236446]
[1756729949262,0.34099117,109080.0,109070.0,0.83236446]
[1756729949490,0.63469552,109080.0,109070.0,0.83236446]
[1756729949993,0.63469552,109080.0,109070.0,0.64899599]
[1756729950519,0.63684552,109080.0,109070.0,0.64899599]
[1756729951456,0.63684552,109080.0,109070.0,0.83236446]
[1756729951897,0.63469552,109080.0,109070.0,0.83236446]
[1756729952469,0.63684552,109080.0,109070.0,0.83236446]
[1756729952673,0.63684552,109080.0,109070.0,0.64899599]
[1756729954071,0.63469552,109080.0,109070.0,0.43236446]
[1756729954425,0.63469552,109080.0,109070.0,0.83236446]
[1756729954874,0.63469552,109080.0,109070.0,0.43236446]
[1756729955359,0.63469552,109080.0,109070.0,0.83236446]
[1756729955763,0.63469552,109080.0,109070.0,0.64899599]
[1756729955968,0.63469552,109080.0,109070.0,0.83236446]
[1756729956762,0.34578079,109080.0,109070.0,0.83236446]
[1756729956989,0.31823279,109080.0,109070.0,0.83236446]
[1756729957325,0.31344317,109080.0,109070.0,0.83236446]
[1756729958087,0.10930642,109080.0,109070.0,0.83236446]
[1756729958895,0.030476,109090.0,109080.0,0.18335166]
[1756729959105,0.32108035,109090.0,109080.0,0.16468788]
[1756729959450,0.32319035,109090.0,109080.0,0.16468788]
[1756729959992,0.32319035,109090.0,109080.0,0.56468788]
[1756729960218,0.34412917,109090.0,109080.0,0.56244318]
[1756729960337,0.34412917,109090.0,109080.0,0.74579484]
[1756729961900,0.34412917,109090.0,109080.0,0.56244318]
[1756729962249,0.34412917,109090.0,109080.0,0.74579484]
[1756729962685,0.34412917,109090.0,109080.0,0.34579484]
[1756729963028,0.34412917,109090.0,109080.0,0.16244318]
[1756729963160,0.34412917,109090.0,109080.0,0.56473507]
[1756729963365,0.34412917,109090.0,109080.0,0.74579484]
[1756729963594,0.34412917,109090.0,109080.0,0.74679484]
[1756729963973,0.31815035,109090.0,109080.0,0.74679484]
[1756729964362,0.29060435,109090.0,109080.0,0.74679484]
[1756729965275,0.29060435,109090.0,109080.0,0.74779484]
[1756729966319,0.29060435,109090.0,109080.0,0.34779484]
[1756729966734,0.29353435,109090.0,109080.0,0.34779484]
[1756729967089,0.29353435,109090.0,109080.0,0.74779484]
[1756729967419,0.32107835,109090.0,109080.0,0.74779484]
[1756729969876,0.32107835,109090.0,109080.0,0.34779484]
[1756729970502,0.32107835,109090.0,109080.0,0.74779484]
[1756729971829,0.31814835,109090.0,109080.0,0.74779484]
[1756729972005,0.31447317,109100.0,109090.0,0.18333486]
[1756729972208,0.34201517,109100.0,109090.0,0.43218253]
[1756729972411,0.31814635,109100.0,109090.0,0.42989085]
[1756729972613,0.32107635,109100.0,109090.0,0.42989085]
[1756729973483,0.32318635,109100.0,109090.0,0.42989085]
[1756729974130,0.32318635,109100.0,109090.0,0.43289085]
[1756729975410,0.32318635,109100.0,109090.0,0.43389085]
[1756729975633,0.32797597,109100.0,109090.0,0.83389085]
[1756729976021,0.32797597,109100.0,109090.0,0.67925085]
[1756729976633,0.32797597,109100.0,109090.0,0.83381085]
[1756729980685,0.03233162,109100.0,109090.0,0.83381085]
[1756729980853,0.32293597,109100.0,109090.0,0.83381085]
[1756729981057,0.32293597,109100.0,109090.0,0.88381085]
[1756729981217,0.29539397,109100.0,109090.0,0.88381085]
[1756729982186,0.29539397,109100.0,109090.0,0.88369085]
[1756729982944,0.29539397,109100.0,109090.0,0.72925085]
[1756729983167,0.30043397,109100.0,109090.0,0.88365085]
[1756729986154,0.29832397,109100.0,109090.0,0.88365085]
[1756729987477,0.29832397,109100.0,109090.0,0.88361085]
[1756729988732,0.29832397,109100.0,109090.0,0.72925085]
[1756729988963,0.30047397,109100.0,109090.0,0.88361085]
[1756729990768,0.30047397,109100.0,109090.0,0.67925085]
[1756729990974,0.30047397,109100.0,109090.0,0.83353085]
[1756729991211,0.32586497,109100.0,109090.0,0.83353085]
[1756729991410,0.32801497,109100.0,109090.0,0.83353085]
[1756729992250,0.32801497,109100.0,109090.0,0.65019599]
[1756729992458,0.32801497,109100.0,109090.0,0.83353085]
[1756729992658,0.32801497,109100.0,109090.0,0.65019599]
[1756729992891,0.34895379,109100.0,109090.0,0.65031599]
[1756729993756,0.34895379,109100.0,109090.0,0.25031599]
[1756729994004,0.34895379,109100.0,109090.0,0.43365085]
[1756729994214,0.32586497,109100.0,109090.0,0.43365085]
[1756729994422,0.29539397,109100.0,109090.0,0.43365085]
[1756729995068,0.29855397,109100.0,109090.0,0.43365085]
[1756729995258,0.30070397,109100.0,109090.0,0.43365085]
[1756729996895,0.29539397,109100.0,109090.0,0.48365085]
[1756729997584,0.29539397,109100.0,109090.0,0.88365085]
[1756730000879,0.00478962,109100.0,109090.0,0.88365085]
[1756730001082,0.29539397,109100.0,109090.0,0.88365085]
[1756730002247,0.29855397,109100.0,109090.0,0.88365085]
[1756730004283,0.29376435,109100.0,109090.0,0.88365085]
[1756730005102,0.29060435,109100.0,109090.0,0.88365085]
[1756730005726,0.29376435,109100.0,109090.0,0.88365085]
[1756730006918,0.00316,109100.0,109090.0,0.88365085]
[1756730007096,0.29591435,109100.0,109090.0,0.88365085]
[1756730008328,0.07918337,109100.0,109090.0,0.88365085]
[1756730008517,0.07918337,109100.0,109090.0,0.88572085]
[1756730009767,0.07918337,109100.0,109090.0,0.89422085]
[1756730010385,0.07918337,109100.0,109090.0,0.89199085]
[1756730010386,0.08234337,109100.0,109090.0,0.89199085]
[1756730011846,0.08234337,109100.0,109090.0,0.88349085]
[1756730012653,0.29591435,109100.0,109090.0,0.88556085]
[1756730013226,0.29275435,109100.0,109090.0,0.88556085]
[1756730013437,0.00215,109100.0,109090.0,0.88556085]
[1756730013613,0.29275435,109100.0,109090.0,0.88556085]
[1756730013811,0.29591435,109100.0,109090.0,0.88556085]
[1756730014584,0.29275435,109100.0,109090.0,0.88556085]
[1756730016855,0.29275435,109100.0,109090.0,0.89406085]
[1756730017062,0.29060435,109100.0,109090.0,0.89406085]
[1756730017873,0.32130435,109110.0,109100.0,0.18331805]
[1756730018115,0.12554631,109130.0,109100.0,0.55416551]
[1756730018320,0.29060435,109120.0,109110.0,0.42940197]
[1756730018494,0.29263435,109120.0,109110.0,0.89984197]
[1756730018722,0.29583435,109120.0,109110.0,0.89984197]
[1756730018923,0.32337135,109120.0,109110.0,0.74564197]
[1756730019047,0.32337135,109120.0,109110.0,0.89984197]
[1756730019247,0.032767,109120.0,109110.0,0.89984197]
[1756730019482,0.32337135,109120.0,109110.0,0.74564197]
[1756730019660,0.32337135,109120.0,109110.0,0.89984197]
[1756730020066,0.32816097,109120.0,109110.0,0.74564197]
[1756730020264,0.32816097,109120.0,109110.0,0.90080197]
[1756730020912,0.32816097,109120.0,109110.0,0.90180197]
[1756730021504,0.32816097,109120.0,109110.0,0.74764197]
[1756730021683,0.32816097,109120.0,109110.0,0.90180197]
[1756730024805,0.32816097,109120.0,109110.0,0.90380197]
[1756730025012,0.32816097,109120.0,109110.0,0.90180197]
[1756730026364,0.32816097,109120.0,109110.0,0.74764197]
[1756730026669,0.32816097,109120.0,109110.0,0.90180197]
[1756730027301,0.32816097,109120.0,109110.0,0.90380197]
[1756730028166,0.4220864,109130.0,109120.0,0.18328445]
[1756730028167,0.002,109130.0,109120.0,0.18328445]
[1756730028368,0.002,109130.0,109120.0,0.48169149]
[1756730028527,0.29260435,109130.0,109120.0,0.48140044]
[1756730028906,0.29260435,109130.0,109120.0,0.32720044]
[1756730029060,0.29260435,109130.0,109120.0,0.52169565]
[1756730029227,0.29580435,109130.0,109120.0,0.52169565]
[1756730029442,0.29830607,109130.0,109120.0,0.51969565]
[1756730029642,0.29930607,109130.0,109120.0,0.51969565]
[1756730030038,0.29930607,109130.0,109120.0,0.91969565]
[1756730030761,0.29930607,109130.0,109120.0,0.72403565]
[1756730030967,0.29930607,109130.0,109120.0,0.65457599]
[1756730031377,0.32584107,109130.0,109120.0,0.65457599]
[1756730031577,0.32584107,109130.0,109120.0,0.50041599]
[1756730031799,0.66684107,109130.0,109120.0,0.64607599]
[1756730032168,0.66584107,109130.0,109120.0,0.64607599]
[1756730032687,0.66684107,109130.0,109120.0,0.64607599]
[1756730032894,0.66684107,109130.0,109120.0,0.24607599]
[1756730033301,0.66684107,109130.0,109120.0,0.09191599]
[1756730033504,0.66684107,109130.0,109120.0,0.24603599]
[1756730034654,0.66684107,109130.0,109120.0,0.09191599]
[1756730034847,0.66684107,109130.0,109120.0,0.24603599]
[1756730036950,0.66684107,109130.0,109120.0,0.64603599]
[1756730039963,0.66684107,109130.0,109120.0,0.24603599]
[1756730040307,0.66684107,109130.0,109120.0,0.09191599]
[1756730040536,0.66484107,109130.0,109120.0,0.64603599]
[1756730041933,0.66484107,109130.0,109120.0,0.24603599]
[1756730043297,0.66484107,109130.0,109120.0,0.42932044]
[1756730043666,0.66484107,109130.0,109120.0,0.24603599]
[1756730043860,0.66963069,109130.0,109120.0,0.42932044]
[1756730044088,0.66963069,109130.0,109120.0,0.24603599]
[1756730045258,0.69056951,109130.0,109110.0,0.51125353]
[1756730045457,0.29060435,109120.0,109110.0,0.56235599]
[1756730045703,0.29060435,109120.0,109110.0,0.89977724]
[1756730046043,0.32339135,109120.0,109110.0,0.90185724]
[1756730046382,0.31814135,109120.0,109110.0,0.90185724]
[1756730046784,0.31814135,109120.0,109110.0,0.90285724]
[1756730048196,0.36620016,109130.0,109120.0,0.18328445]
[1756730048197,0.63586569,109130.0,109120.0,0.18328445]
[1756730048438,0.29586569,109130.0,109120.0,0.27957149]
[1756730048649,0.29586569,109130.0,109120.0,0.27728044]
[1756730048806,0.29586569,109130.0,109120.0,0.67728044]
[1756730049217,0.32340069,109130.0,109120.0,0.67728044]
[1756730049799,0.03279634,109130.0,109120.0,0.67728044]
[1756730050002,0.32340069,109130.0,109120.0,0.67728044]
[1756730050123,0.32440069,109130.0,109120.0,0.67728044]
[1756730050347,0.03379634,109130.0,109120.0,0.67728044]
[1756730050557,0.32440069,109130.0,109120.0,0.67728044]
[1756730050835,0.32965069,109130.0,109120.0,0.67728044]
[1756730052081,0.32965069,109130.0,109120.0,0.27728044]
[1756730052518,0.32440069,109130.0,109120.0,0.67728044]
[1756730052722,0.32754069,109130.0,109120.0,0.67728044]
[1756730053651,0.32965069,109130.0,109120.0,0.67728044]
[1756730054355,0.03904634,109130.0,109120.0,0.67520044]
[1756730054546,0.32965069,109130.0,109120.0,0.82944044]
[1756730055496,0.32965069,109130.0,109120.0,0.83152044]
[1756730056116,0.32440069,109130.0,109120.0,0.83152044]
[1756730056611,0.03379634,109130.0,109120.0,0.83152044]
[1756730056777,0.32440069,109130.0,109120.0,0.83152044]
[1756730059555,0.71403801,109140.0,109130.0,0.18326766]
[1756730059725,1.0344278,109140.0,109130.0,0.2559985]
[1756730059884,1.0344278,109140.0,109130.0,0.25370766]
[1756730060286,1.0344278,109140.0,109130.0,0.65370766]
[1756730061010,1.0364278,109140.0,109130.0,0.47044]
[1756730061210,1.0364278,109140.0,109130.0,0.62456]
[1756730061421,1.0364278,109140.0,109130.0,0.47044]
[1756730061624,1.0364278,109140.0,109130.0,0.62456]
[1756730061830,1.0364278,109140.0,109130.0,0.22456]
[1756730062782,1.0374278,109140.0,109130.0,0.22456]
[1756730063955,1.0374278,109140.0,109130.0,0.40782766]
[1756730064152,0.74682345,109140.0,109130.0,0.40782766]
[1756730064376,0.74682345,109140.0,109130.0,0.40990766]
[1756730065435,0.74682345,109140.0,109130.0,0.22664]
[1756730065641,0.74682345,109140.0,109130.0,0.22456]
[1756730065909,0.74682345,109140.0,109130.0,0.62456]
[1756730066550,0.74682345,109140.0,109130.0,0.80782766]
[1756730069625,0.74682345,109140.0,109130.0,0.80990766]
[1756730070731,0.74471345,109140.0,109130.0,0.90182365]
[1756730071237,0.74682345,109140.0,109130.0,0.90182365]
[1756730071593,0.33063463,109140.0,109130.0,0.90182365]
[1756730072736,0.04003028,109140.0,109130.0,0.90182365]
[1756730072911,0.29060435,109140.0,109130.0,0.90182365]
[1756730073498,0.29983198,109140.0,109130.0,0.90382365]
[1756730074980,0.30498198,109140.0,109130.0,0.90178365]
[1756730075185,0.30498198,109140.0,109130.0,0.90379365]
[1756730075394,0.3097716,109140.0,109130.0,0.90379365]
[1756730077094,0.65037595,109140.0,109130.0,0.71851599]
[1756730077526,0.65037595,109140.0,109130.0,0.56435599]
[1756730077735,0.67131477,109140.0,109130.0,0.62656]
[1756730077938,0.67131477,109140.0,109130.0,0.2266]
[1756730078329,0.69884977,109140.0,109130.0,0.07244]
[1756730078611,0.69884977,109140.0,109130.0,0.2266]
[1756730079163,0.11764107,109140.0,109130.0,0.2266]
[1756730079395,0.69884977,109140.0,109130.0,0.2256]
[1756730079606,0.69884977,109140.0,109130.0,0.2246]
[1756730079859,0.69984977,109140.0,109130.0,0.2246]
[1756730080307,0.70084977,109140.0,109130.0,0.2246]
[1756730080721,0.69984977,109140.0,109130.0,0.2246]
[1756730081249,0.69884977,109140.0,109130.0,0.2246]
[1756730081416,0.02093882,109130.0,109110.0,0.68127257]
[1756730081573,0.02093882,109130.0,109120.0,0.15424]
[1756730082003,0.02291882,109130.0,109120.0,0.15424]
[1756730082349,0.02608882,109130.0,109120.0,0.15424]
[1756730082595,0.02608882,109130.0,109110.0,0.56235599]
[1756730082801,0.02291882,109130.0,109120.0,0.15424]
[1756730083331,0.05362682,109130.0,109120.0,0.15424]
[1756730083757,0.05362682,109130.0,109120.0,0.33852445]
[1756730083956,0.34423117,109130.0,109120.0,0.33852445]
[1756730084305,0.34423117,109130.0,109120.0,0.15524]
[1756730086300,0.34423117,109130.0,109120.0,0.33852445]
[1756730086697,0.34423117,109130.0,109120.0,0.15524]
[1756730087128,0.34423117,109130.0,109120.0,0.34053445]
[1756730088942,0.29575435,109130.0,109120.0,0.34053445]
[1756730089587,0.29060435,109130.0,109120.0,0.34053445]
[1756730090584,0.29258435,109130.0,109120.0,0.34053445]
[1756730090790,0.29575435,109130.0,109120.0,0.34053445]
[1756730091221,0.29377435,109130.0,109120.0,0.34053445]
[1756730091412,0.29575435,109130.0,109120.0,0.34053445]
[1756730092141,0.29575435,109130.0,109120.0,0.41097445]
[1756730092347,0.29575435,109130.0,109120.0,0.81097445]
[1756730092475,0.29377435,109130.0,109120.0,0.81097445]
[1756730093621,0.29060435,109130.0,109120.0,0.81089445]
[1756730093950,0.38053798,109140.0,109120.0,0.81089445]
[1756730094096,0.29575435,109130.0,109120.0,0.81089445]
[1756730095953,0.29575435,109130.0,109120.0,0.81085445]
[1756730096090,0.29575435,109130.0,109120.0,0.47144]
[1756730096298,0.29575435,109130.0,109120.0,0.62556]
[1756730096614,0.29575435,109130.0,109120.0,0.22556]
[1756730096812,0.00515,109130.0,109120.0,0.22757]
[1756730097048,0.29575435,109130.0,109120.0,0.22757]
[1756730097466,0.29575435,109130.0,109120.0,0.41085445]
[1756730100603,0.29575435,109130.0,109120.0,0.22556]
[1756730102853,0.29575435,109130.0,109120.0,0.2256]
[1756730103034,0.29575435,109130.0,109120.0,0.07144]
[1756730103209,0.29575435,109130.0,109120.0,0.2256]
[1756730104018,0.29575435,109130.0,109120.0,0.07144]
[1756730104401,0.31669317,109130.0,109120.0,0.2256]
[1756730104612,0.32148279,109130.0,109120.0,0.2256]
[1756730105018,0.34902079,109130.0,109120.0,0.2256]
[1756730105223,0.34902079,109130.0,109120.0,0.22759]
[1756730105343,0.34902079,109130.0,109120.0,0.41087445]
[1756730106147,0.32808197,109130.0,109120.0,0.41087445]
[1756730106350,0.30054397,109130.0,109120.0,0.22759]
[1756730107074,0.32808097,109130.0,109120.0,0.41087445]
[1756730107658,0.30054397,109130.0,109120.0,0.41087445]
[1756730108323,0.30054397,109130.0,109120.0,0.22759]
[1756730110102,0.00993962,109130.0,109120.0,0.22759]
[1756730110303,0.30054397,109130.0,109120.0,0.22759]
[1756730111244,0.30054397,109130.0,109120.0,0.2256]
[1756730111663,0.30054397,109130.0,109120.0,0.22759]
[1756730113083,0.30054397,109130.0,109120.0,0.2256]
[1756730115268,0.30054397,109130.0,109120.0,0.22759]
[1756730115712,0.30054397,109130.0,109120.0,0.2256]
[1756730119409,0.00993962,109130.0,109120.0,0.40888445]
[1756730119612,0.30054397,109130.0,109120.0,0.41087445]
[1756730120070,0.30054397,109130.0,109120.0,0.22759]
[1756730121706,0.30054397,109130.0,109120.0,0.41087445]
[1756730122069,0.30050484,109130.0,109120.0,0.22759]
[1756730122543,0.30050484,109130.0,109120.0,0.41087445]
[1756730122803,0.30050484,109130.0,109120.0,0.22759]
[1756730123903,0.30050484,109130.0,109120.0,0.41087445]
[1756730124186,0.30050484,109130.0,109120.0,0.22759]
[1756730125656,0.30050484,109130.0,109120.0,0.41087445]
[1756730125860,0.30050484,109130.0,109120.0,0.22759]
[1756730128072,0.30050484,109130.0,109120.0,0.41087445]
[1756730128821,0.30050484,109130.0,109120.0,0.22759]
[1756730129687,0.59107006,109130.0,109120.0,0.22759]
[1756730130319,0.59107006,109130.0,109120.0,0.2256]
[1756730130544,0.00993962,109130.0,109120.0,0.41087445]
[1756730130777,0.30050484,109130.0,109120.0,0.41087445]
[1756730131000,0.00993962,109130.0,109120.0,0.41087445]
[1756730131243,0.30050484,109130.0,109120.0,0.41087445]
[1756730132991,0.29535484,109130.0,109120.0,0.50279044]
[1756730133204,0.29535484,109130.0,109120.0,0.50485044]
[1756730133633,0.29535484,109130.0,109120.0,0.50279044]
[1756730134090,0.29535484,109130.0,109120.0,0.50275044]
[1756730134735,0.29831484,109130.0,109120.0,0.90275044]
[1756730134942,0.29535484,109130.0,109120.0,0.90275044]
[1756730135161,0.30048484,109130.0,109120.0,0.90275044]
[1756730136702,0.30048484,109130.0,109120.0,0.90076044]
[1756730137537,0.30048484,109130.0,109120.0,0.90291044]
[1756730141857,0.30048484,109130.0,109120.0,0.50291044]
[1756730142445,0.28947694,109130.0,109120.0,0.34879044]
[1756730142645,0.28947694,109130.0,109120.0,0.50291044]
[1756730143246,0.28947694,109130.0,109120.0,0.34879044]
[1756730143656,0.28947694,109130.0,109120.0,0.50291044]
[1756730144993,0.28730694,109130.0,109120.0,0.50291044]
[1756730145202,0.38028885,109140.0,109120.0,0.50613044]
[1756730145378,0.29056522,109130.0,109120.0,0.50613044]
[1756730145983,0.29056522,109130.0,109120.0,0.90613044]
[1756730146487,0.29056522,109130.0,109120.0,0.90513044]
[1756730146930,0.07960894,109130.0,109120.0,0.90513044]